bitfinex/quotes_SOLUSD_20240727
["timestamp","ask_amount","ask_price","bid_price","bid_amount"]
[1722092266833,0.7720348,185.31,185.23,45.0]
[1722092267042,0.7720348,185.31,185.24,0.34]
[1722092267641,25.26,185.34,185.24,0.34]
[1722092268024,1.34925147,185.33,185.24,0.34]
[1722092268222,25.26,185.34,185.24,0.34]
[1722092268945,5.396,185.32,185.22,15.1837]
[1722092269143,5.3958,185.33,185.22,15.1837]
[1722092269450,1.34925969,185.32,185.23,0.34]
[1722092269630,6.74513395,185.33,185.23,0.34]
[1722092270142,1.34933781,185.32,185.23,0.34]
[1722092270348,1.34933781,185.32,185.22,15.1837]
[1722092270555,5.3958,185.33,185.22,15.1837]
[1722092270720,30.6555,185.34,185.22,15.1837]
[1722092271047,5.3949,185.36,185.23,45.34]
[1722092271249,5.3949,185.36,185.25,6.3763]
[1722092271546,7.6639225,185.39,185.25,6.3763]
[1722092271547,25.26,185.34,185.25,6.3763]
[1722092271723,5.396,185.32,185.25,6.3763]
[1722092272023,6.74537803,185.32,185.25,6.3763]
[1722092272944,70.26,185.31,185.22,15.1837]
[1722092273144,1.34955977,185.3,185.22,15.1837]
[1722092273332,1.34959449,185.29,185.22,15.1837]
[1722092273536,70.26,185.31,185.22,15.1837]
[1722092273845,25.26,185.31,185.22,15.1837]
[1722092274243,30.6564,185.31,185.22,15.1837]
[1722092274746,25.26,185.31,185.22,15.1837]
[1722092274925,1.34945821,185.3,185.22,15.1837]
[1722092275943,25.26,185.31,185.22,15.1837]
[1722092276356,25.26,185.34,185.22,15.1837]
[1722092276652,20.0,185.33,185.22,15.1837]
[1722092277230,25.3957,185.33,185.22,15.1837]
[1722092277431,20.0,185.33,185.23,0.34]
[1722092277639,20.0,185.33,185.23,45.34]
[1722092277829,20.34929195,185.33,185.23,0.34]
[1722092278027,1.34929195,185.32,185.23,0.34]
[1722092278351,1.34929195,185.32,185.23,0.17]
[1722092278930,19.0,185.33,185.23,0.17]
[1722092279234,25.26,185.34,185.23,0.34]
[1722092279435,25.26,185.34,185.23,45.34]
[1722092280644,5.3963,185.31,185.22,15.1837]
[1722092280834,1.34923278,185.33,185.22,15.1837]
[1722092280835,6.745539,185.32,185.22,15.1837]
[1722092281045,30.6555,185.34,185.22,15.1837]
[1722092281344,25.26,185.34,185.22,15.1837]
[1722092281843,1.34921119,185.33,185.23,45.0]
[1722092282045,25.26,185.37,185.24,1.0793862]
[1722092282227,25.26,185.37,185.25,0.34]
[1722092282432,25.26,185.37,185.26,15.0905]
[1722092282633,25.26,185.37,185.27,0.34]
[1722092283041,12.61,185.34,185.27,12.95]
[1722092283432,12.61,185.33,185.27,0.34]
[1722092283954,12.61,185.32,185.27,0.34]
[1722092284574,12.61,185.32,185.27,0.17]
[1722092284723,12.61,185.3,185.26,15.0905]
[1722092285127,12.61,185.29,185.26,15.0905]
[1722092287154,1.34922711,185.34,185.26,15.0905]
[1722092287455,30.6152,185.35,185.26,15.0905]
[1722092287754,1.34920692,185.34,185.26,15.0905]
[1722092288444,5.3947,185.37,185.26,15.0905]
[1722092288639,25.3949,185.36,185.26,15.0905]
[1722092289252,20.0,185.36,185.26,15.0905]
[1722092289660,1.34913533,185.36,185.26,15.0905]
[1722092289837,6.74423533,185.36,185.26,15.0905]
[1722092290152,20.0,185.37,185.26,15.0905]
[1722092290456,20.0,185.37,185.27,45.34]
[1722092291041,25.3946,185.37,185.27,45.34]
[1722092291448,25.3946,185.37,185.27,46.41921977]
[1722092291757,5.3946,185.37,185.27,46.41921977]
[1722092291961,25.22,185.38,185.27,45.34]
[1722092291962,5.3951,185.36,185.27,45.34]
[1722092292561,5.3946,185.37,185.26,15.0905]
[1722092292854,25.22,185.38,185.27,46.0793093]
[1722092293158,25.22,185.38,185.28,6.3584]
[1722092293363,25.22,185.38,185.29,1.07921677]
[1722092294040,25.22,185.38,185.28,6.3584]
[1722092294235,5.394,185.39,185.28,6.3584]
[1722092294455,5.394,185.39,185.29,0.17]
[1722092294664,20.0,185.38,185.29,0.17]
[1722092294956,25.3943,185.38,185.29,0.17]
[1722092295342,20.0,185.38,185.29,0.17]
[1722092295657,5.3946,185.37,185.29,0.17]
[1722092296050,5.3943,185.38,185.29,0.17]
[1722092296257,26.74282966,185.4,185.29,45.34]
[1722092296448,5.3941,185.39,185.29,45.34]
[1722092296848,20.0,185.38,185.29,45.34]
[1722092297050,20.0,185.4,185.29,46.41903756]
[1722092297251,25.22,185.42,185.3,1.07903201]
[1722092297452,25.22,185.42,185.31,0.34]
[1722092297760,1.34875814,185.41,185.31,0.34]
[1722092297946,1.34875814,185.41,185.29,45.0]
[1722092298141,5.3943,185.38,185.3,0.17]
[1722092298444,5.3938,185.4,185.3,0.34]
[1722092298647,5.3938,185.4,185.31,15.9585]
[1722092299367,6.74261171,185.4,185.31,15.9585]
[1722092299664,5.394,185.39,185.31,15.9585]
[1722092300163,1.34881243,185.38,185.31,15.9585]
[1722092300369,1.34885679,185.43,185.31,15.9585]
[1722092300549,1.34885679,185.41,185.32,0.17]
[1722092300869,20.0,185.41,185.32,0.17]
[1722092301337,30.6131,185.42,185.32,0.17]
[1722092301338,25.22,185.42,185.32,45.34]
[1722092301742,5.3929,185.43,185.32,45.34]
[1722092301944,25.3931,185.42,185.32,45.34]
[1722092302243,20.0,185.42,185.33,7.43729875]
[1722092302438,20.0,185.42,185.34,45.34]
[1722092302642,20.0,185.43,185.34,45.34]
[1722092303061,5.392,185.46,185.35,1.07874642]
[1722092303238,5.392,185.46,185.37,15.9585]
[1722092303572,25.22,185.46,185.37,15.9585]
[1722092304061,5.3923,185.45,185.37,15.9585]
[1722092304458,5.3922,185.46,185.37,15.9585]
[1722092305249,20.0,185.45,185.38,0.17]
[1722092305445,25.3921,185.46,185.38,0.17]
[1722092305749,25.3921,185.46,185.37,15.9585]
[1722092306144,20.0,185.46,185.38,0.17]
[1722092306463,20.0,185.46,185.38,45.34]
[1722092307065,12.59,185.43,185.38,45.34]
[1722092307367,20.0,185.46,185.38,45.34]
[1722092307578,55.7513,185.49,185.39,6.0619]
[1722092307742,12.59,185.45,185.4,0.34]
[1722092308265,12.59,185.46,185.4,0.34]
[1722092308458,0.7720348,185.5,185.41,16.1849]
[1722092308459,12.59,185.47,185.41,16.1849]
[1722092308661,2.120096,185.5,185.41,16.1849]
[1722092308870,12.59,185.43,185.41,16.1849]
[1722092309456,5.3912,185.49,185.41,16.1849]
[1722092309656,12.59,185.46,185.41,16.1849]
[1722092309853,12.59,185.47,185.42,45.34]
[1722092310469,20.0,185.48,185.42,45.34]
[1722092310778,12.59,185.48,185.42,45.34]
[1722092310975,12.59,185.47,185.42,45.34]
[1722092311871,26.1628348,185.5,185.42,45.34]
[1722092312175,12.59,185.48,185.42,45.34]
[1722092312355,12.59,185.49,185.42,45.34]
[1722092312769,12.59,185.48,185.42,45.34]
[1722092312957,12.59,185.45,185.41,16.1849]
[1722092313660,12.59,185.44,185.41,16.1849]
[1722092314453,1.34812753,185.48,185.41,16.1849]
[1722092314659,12.59,185.42,185.41,16.1849]
[1722092314966,5.3923,185.45,185.41,16.1849]
[1722092315774,12.59,185.42,185.41,16.1849]
[1722092316767,12.59,185.42,185.36,16.1849]
[1722092316971,12.59,185.41,185.36,16.1849]
[1722092317578,5.3925,185.44,185.36,16.1849]
[1722092317775,1.34849186,185.48,185.36,16.1849]
[1722092317776,12.59,185.42,185.36,16.1849]
[1722092318276,12.59,185.44,185.37,12.59]
[1722092318650,5.3919,185.47,185.37,12.59]
[1722092318859,20.0,185.46,185.38,45.34]
[1722092319067,12.59,185.44,185.38,45.34]
[1722092319265,12.59,185.45,185.38,0.34]
[1722092319468,20.0,185.44,185.37,12.93]
[1722092319673,12.59,185.43,185.37,0.34]
[1722092320353,12.59,185.43,185.37,12.93]
[1722092320875,12.59,185.43,185.37,0.34]
[1722092321079,12.59,185.43,185.37,45.34]
[1722092321279,0.7720348,185.5,185.38,16.1849]
[1722092321470,0.7720348,185.5,185.4,12.59]
[1722092321471,5.3911,185.49,185.4,12.59]
[1722092321657,12.59,185.47,185.41,0.34]
[1722092321977,12.59,185.45,185.39,0.34]
[1722092322185,12.59,185.45,185.39,45.34]
[1722092322481,5.3915,185.48,185.38,16.1849]
[1722092322482,12.59,185.44,185.38,16.1849]
[1722092323173,25.3917,185.47,185.39,0.34]
[1722092323365,12.59,185.45,185.38,16.1849]
[1722092323568,5.3923,185.45,185.38,16.1849]
[1722092323766,12.59,185.44,185.38,16.1849]
[1722092323980,12.59,185.44,185.38,28.7749]
[1722092324162,12.59,185.46,185.39,1.07860258]
[1722092324368,12.59,185.45,185.38,16.1849]
[1722092324579,12.59,185.42,185.38,16.1849]
[1722092325168,12.59,185.44,185.39,1.07871087]
[1722092326579,12.59,185.44,185.38,16.1849]
[1722092326885,12.59,185.43,185.38,16.1849]
[1722092327963,12.59,185.4,185.38,16.1849]
[1722092330282,12.59,185.41,185.38,16.1849]
[1722092330984,5.3923,185.45,185.38,16.1849]
[1722092331192,20.0,185.47,185.38,16.1849]
[1722092331193,20.0,185.44,185.38,16.1849]
[1722092331482,12.59,185.43,185.38,16.1849]
[1722092333364,20.0,185.44,185.38,28.7749]
[1722092333760,12.59,185.45,185.38,28.7749]
[1722092333982,12.59,185.45,185.38,16.1849]
[1722092334180,5.3917,185.47,185.38,16.1849]
[1722092334387,12.59,185.44,185.39,0.34]
[1722092334781,12.59,185.44,185.38,16.1849]
[1722092335673,55.7513,185.49,185.38,28.7749]
[1722092335881,12.59,185.45,185.39,0.17]
[1722092336089,12.59,185.43,185.38,16.1849]
[1722092339084,12.59,185.44,185.38,16.1849]
[1722092340075,12.59,185.42,185.38,16.1849]
[1722092340275,5.3926,185.44,185.38,16.1849]
[1722092340276,12.59,185.41,185.38,16.1849]
[1722092340969,12.59,185.42,185.38,16.1849]
[1722092341174,12.59,185.43,185.38,16.1849]
[1722092341374,12.59,185.44,185.38,16.1849]
[1722092341795,12.59,185.43,185.38,16.1849]
[1722092342771,5.3914,185.48,185.38,16.1849]
[1722092342974,12.59,185.46,185.39,12.59]
[1722092343694,2.12028086,185.5,185.38,16.1849]
[1722092343695,0.7720348,185.5,185.43,6.019]
[1722092343995,12.59,185.49,185.43,6.019]
[1722092346375,0.7720348,185.5,185.44,16.5359]
[1722092346702,12.59,185.49,185.44,16.5359]
[1722092347597,13.3620348,185.5,185.44,16.5359]
[1722092347804,12.59,185.49,185.44,16.5359]
[1722092349884,0.7720348,185.5,185.44,29.1259]
[1722092350404,0.7720348,185.5,185.46,12.59]
[1722092350702,0.7720348,185.5,185.47,13.66817784]
[1722092351598,0.7720348,185.5,185.47,12.59]
[1722092352192,0.7720348,185.5,185.48,13.66810994]
[1722092352595,0.7720348,185.5,185.49,1.07809685]
[1722092353802,0.7720348,185.5,185.49,13.66809685]
[1722092354325,0.7720348,185.5,185.49,57.93]
[1722092355912,0.7720348,185.5,185.45,1.07789413]
[1722092356117,0.7720348,185.5,185.47,12.59]
[1722092356309,0.7720348,185.5,185.48,1.0780786]
[1722092356510,0.7720348,185.5,185.49,1.07807703]
[1722092357094,0.7720348,185.5,185.49,13.66807703]
[1722092357404,0.7720348,185.5,185.49,12.59]
[1722092358397,3.48e-05,185.5,185.49,76.7642]
[1722092358603,12.59,185.59,185.49,80.7101]
[1722092358903,12.59,185.59,185.52,12.59]
[1722092359296,12.59,185.59,185.53,45.0]
[1722092360015,6.73426005,185.63,185.53,45.0]
[1722092360217,20.0,185.62,185.53,45.0]
[1722092360521,12.59,185.56,185.49,22.7801]
[1722092360901,1.34747032,185.61,185.49,22.7801]
[1722092361098,20.0,185.62,185.49,35.3701]
[1722092361099,12.59,185.56,185.49,35.3701]
[1722092361892,12.59,185.55,185.49,22.7801]
[1722092362412,12.59,185.55,185.5,1.07803624]
[1722092362625,21.3475453,185.62,185.5,1.07803624]
[1722092362828,12.59,185.56,185.5,1.07803624]
[1722092363194,21.3475453,185.62,185.49,35.3701]
[1722092363531,12.59,185.56,185.5,0.34]
[1722092363820,12.59,185.56,185.5,45.34]
[1722092364504,12.59,185.59,185.52,12.59]
[1722092364717,12.59,185.6,185.53,12.59]
[1722092365026,5.387,185.63,185.53,12.59]
[1722092365229,12.59,185.6,185.53,12.59]
[1722092365400,12.59,185.6,185.54,0.17]
[1722092365723,12.59,185.61,185.54,0.17]
[1722092367003,12.59,185.61,185.53,12.59]
[1722092367004,12.59,185.59,185.52,12.59]
[1722092367204,12.59,185.58,185.51,12.59]
[1722092367413,12.59,185.6,185.52,12.59]
[1722092368015,12.59,185.6,185.53,12.59]
[1722092369323,12.59,185.59,185.52,12.93]
[1722092369825,12.59,185.59,185.52,0.34]
[1722092370184,12.59,185.59,185.52,12.59]
[1722092370503,12.59,185.6,185.53,12.59]
[1722092372006,12.59,185.59,185.52,12.59]
[1722092372227,5.3874,185.62,185.52,12.59]
[1722092372524,68.42840405,185.67,185.53,12.59]
[1722092372525,12.59,185.6,185.53,12.59]
[1722092372822,12.59,185.6,185.54,0.17]
[1722092373206,5.3871,185.63,185.54,0.17]
[1722092373405,1.34724511,185.64,185.54,12.76]
[1722092373730,20.0,185.72,185.58,12.59]
[1722092373731,2.11911089,185.69,185.58,12.59]
[1722092373966,12.59,185.66,185.58,12.59]
[1722092374234,7.50441089,185.69,185.58,12.59]
[1722092374446,12.59,185.66,185.58,12.59]
[1722092374648,12.59,185.66,185.59,1.07744678]
[1722092374834,12.59,185.65,185.58,12.59]
[1722092375938,12.59,185.65,185.57,12.93]
[1722092376945,12.59,185.65,185.58,12.59]
[1722092377318,12.59,185.66,185.58,12.59]
[1722092377666,7.50416564,185.69,185.59,12.59]
[1722092377667,0.7720348,185.69,185.59,12.59]
[1722092377831,12.59,185.67,185.6,12.76]
[1722092378031,12.59,185.67,185.6,12.93]
[1722092378713,12.59,185.67,185.6,12.76]
[1722092378917,0.7720348,185.69,185.61,12.59]
[1722092379150,12.59,185.68,185.61,12.59]
[1722092379316,0.7720348,185.69,185.61,12.59]
[1722092379517,12.59,185.68,185.61,12.59]
[1722092380924,0.7720348,185.69,185.62,18.6345]
[1722092381119,0.7720348,185.69,185.63,12.59]
[1722092381324,0.7720348,185.69,185.63,13.66725705]
[1722092381528,0.7720348,185.69,185.62,6.0445]
[1722092381851,0.7720348,185.69,185.6,16.8173]
[1722092381852,12.59,185.66,185.6,16.6473]
[1722092382034,12.59,185.65,185.6,16.6473]
[1722092382233,12.59,185.64,185.6,16.6473]
[1722092382437,6.1574348,185.69,185.6,16.6473]
[1722092382750,12.59,185.65,185.6,16.6473]
[1722092383053,12.59,185.66,185.6,16.6473]
[1722092383423,21.34672996,185.68,185.6,16.6473]
[1722092383623,12.59,185.67,185.6,29.2373]
[1722092385629,22.11876826,185.69,185.6,29.2373]
[1722092385630,12.59,185.65,185.6,16.6473]
[1722092385826,12.59,185.63,185.6,16.6473]
[1722092386024,12.59,185.64,185.6,16.6473]
[1722092386261,12.59,185.66,185.6,16.6473]
[1722092389366,12.59,185.67,185.6,29.2373]
[1722092389656,12.59,185.67,185.6,16.6473]
[1722092389862,12.59,185.66,185.6,16.6473]
[1722092390367,12.59,185.65,185.6,16.6473]
[1722092391946,1.3468563,185.64,185.6,16.6473]
[1722092392851,12.59,185.65,185.6,16.6473]
[1722092393056,6.73295205,185.67,185.6,16.6473]
[1722092393057,12.59,185.64,185.6,16.6473]
[1722092394457,12.59,185.65,185.6,16.6473]
[1722092394860,26.1574348,185.69,185.6,16.6473]
[1722092395049,12.59,185.65,185.6,16.6473]
[1722092399161,22.11879386,185.69,185.6,16.6473]
[1722092399364,12.59,185.67,185.6,29.2373]
[1722092400666,12.59,185.67,185.6,16.6473]
[1722092400667,12.59,185.63,185.6,16.6473]
[1722092400872,5.3858,185.68,185.6,16.6473]
[1722092401051,20.7720348,185.69,185.6,16.6473]
[1722092401052,20.0,185.67,185.6,16.6473]
[1722092401252,12.59,185.66,185.6,16.6473]
[1722092402167,12.59,185.68,185.61,12.59]
[1722092402869,20.7720348,185.69,185.61,12.59]
[1722092403174,12.59,185.68,185.61,12.59]
[1722092403350,12.59,185.67,185.6,29.2373]
[1722092403740,12.59,185.66,185.6,16.6473]
[1722092403943,12.59,185.65,185.6,16.6473]
[1722092404869,0.7720348,185.69,185.6,16.6473]
[1722092405054,0.7720348,185.69,185.61,12.59]
[1722092405268,0.7720348,185.69,185.62,12.59]
[1722092405650,13.3620348,185.69,185.62,12.59]
[1722092405972,0.7720348,185.69,185.64,12.59]
[1722092406779,0.7720348,185.69,185.64,18.9607]
[1722092407349,0.7720348,185.69,185.64,6.3707]
[1722092408587,12.59,185.66,185.6,23.018]
[1722092408765,12.59,185.65,185.6,23.018]
[1722092409077,12.59,185.64,185.6,23.018]
[1722092409660,0.7720348,185.69,185.6,23.018]
[1722092409853,12.59,185.66,185.6,23.018]
[1722092410254,12.59,185.65,185.6,23.018]
[1722092410959,12.59,185.66,185.6,23.018]
[1722092413980,13.3620348,185.69,185.61,12.59]
[1722092414154,13.3620348,185.69,185.63,12.59]
[1722092414155,0.7720348,185.69,185.63,12.59]
[1722092414562,13.3620348,185.69,185.6,23.018]
[1722092414756,12.59,185.68,185.61,12.59]
[1722092414979,12.59,185.67,185.6,35.608]
[1722092416182,12.59,185.68,185.61,12.59]
[1722092416557,12.59,185.67,185.6,35.608]
[1722092417076,12.59,185.68,185.61,13.66735438]
[1722092417282,13.3620348,185.69,185.61,12.59]
[1722092417472,0.7720348,185.69,185.62,12.59]
[1722092417674,13.3620348,185.69,185.61,12.59]
[1722092419168,0.7720348,185.69,185.63,12.59]
[1722092419584,13.3620348,185.69,185.63,12.59]
[1722092419792,0.7720348,185.69,185.63,12.59]
[1722092420086,0.7720348,185.69,185.64,1.07726859]
[1722092420589,0.7720348,185.69,185.63,12.59]
[1722092421188,0.7720348,185.69,185.64,12.59]
[1722092421483,0.7720348,185.69,185.65,12.59]
[1722092421664,0.7720348,185.69,185.64,12.59]
[1722092421866,0.7720348,185.69,185.66,12.59]
[1722092422787,0.7720348,185.69,185.66,28.7573]
[1722092423171,0.7720348,185.69,185.67,12.59]
[1722092423784,0.7720348,185.69,185.66,28.7573]
[1722092423970,0.7720348,185.69,185.67,12.59]
[1722092424791,0.7720348,185.69,185.66,28.7573]
[1722092425997,0.7720348,185.69,185.67,12.93]
[1722092426289,0.7720348,185.69,185.67,12.59]
[1722092428584,0.7720348,185.69,185.66,16.3373]
[1722092428772,0.7720348,185.69,185.66,28.7573]
[1722092428974,0.7720348,185.69,185.67,0.34]
[1722092429492,0.7720348,185.69,185.67,0.17]
[1722092429977,0.7720348,185.69,185.67,12.76]
[1722092430571,0.7720348,185.69,185.66,16.1673]
[1722092431283,0.7720348,185.69,185.66,28.7573]
[1722092431975,0.7720348,185.69,185.67,0.34]
[1722092432392,0.7720348,185.69,185.66,16.1673]
[1722092434395,0.7720348,185.69,185.66,28.7573]
[1722092435070,0.7720348,185.69,185.68,12.59]
[1722092436494,0.7720348,185.69,185.68,12.93]
[1722092436797,0.7720348,185.69,185.68,0.34]
[1722092436970,0.7720348,185.69,185.66,28.7573]
[1722092437177,0.7720348,185.69,185.67,0.34]
[1722092437387,0.7720348,185.69,185.68,12.59]
[1722092437594,0.7720348,185.69,185.68,0.34]
[1722092437894,0.7720348,185.69,185.67,12.93]
[1722092438277,0.7720348,185.69,185.67,0.34]
[1722092438884,0.7720348,185.69,185.66,28.7573]
[1722092439482,0.7720348,185.69,185.67,45.34]
[1722092439679,0.7720348,185.69,185.67,57.93]
[1722092440706,0.7720348,185.69,185.67,59.00651137]
[1722092441303,0.7720348,185.69,185.68,13.6664384]
[1722092441513,0.7720348,185.69,185.68,59.0064384]
[1722092442814,0.7720348,185.69,185.68,79.0064384]
[1722092444122,0.7720348,185.69,185.68,77.93]
[1722092444608,0.7720348,185.69,185.68,65.34]
[1722092444792,0.7720348,185.69,185.68,79.00605821]
[1722092445414,0.7720348,185.69,185.68,77.93]
[1722092446306,0.7720348,185.69,185.68,57.93]
[1722092448394,0.7720348,185.69,185.66,12.59]
[1722092448602,0.7720348,185.69,185.67,0.34]
[1722092448817,0.7720348,185.69,185.67,12.59]
[1722092450012,0.7720348,185.69,185.63,6.308]
[1722092450013,0.7720348,185.69,185.68,12.59]
[1722092450609,0.7720348,185.69,185.67,12.59]
[1722092450814,0.7720348,185.69,185.63,6.308]
[1722092451020,0.7720348,185.69,185.66,12.59]
[1722092453499,0.7720348,185.69,185.65,12.59]
[1722092454119,100.7720348,185.69,185.65,12.59]
[1722092455025,100.7720348,185.69,185.66,12.59]
[1722092455392,100.7720348,185.69,185.67,12.59]
[1722092455697,100.7720348,185.69,185.68,12.76]
[1722092457326,100.7720348,185.69,185.68,12.59]
[1722092458422,100.7720348,185.69,185.62,15.7066]
[1722092458602,100.7720348,185.69,185.65,12.59]
[1722092459901,100.7720348,185.69,185.64,12.59]
[1722092462432,100.7720348,185.69,185.67,12.59]
[1722092463708,100.7720348,185.69,185.66,12.59]
[1722092464716,100.7720348,185.69,185.65,12.93]
[1722092464920,100.7720348,185.69,185.66,1.07712104]
[1722092465118,100.7720348,185.69,185.67,12.59]
[1722092465336,100.7720348,185.69,185.68,12.59]
[1722092465637,100.7720348,185.69,185.68,12.93]
[1722092465806,100.7720348,185.69,185.68,32.93]
[1722092466305,100.7720348,185.69,185.68,77.93]
[1722092469025,98.74023421,185.69,185.68,77.93]
[1722092471112,98.74023421,185.69,185.68,79.00641031]
[1722092472424,98.74023421,185.69,185.68,77.93]
[1722092472937,98.74023421,185.69,185.68,79.00632729]
[1722092473432,98.74023421,185.69,185.68,77.93]
[1722092474025,57.69823422,185.69,185.68,79.00632263]
[1722092474226,53.27323422,185.69,185.68,77.93]
[1722092476107,48.83323422,185.69,185.68,65.34]
[1722092476331,48.83323422,185.69,185.68,77.93]
[1722092478318,42.61123422,185.69,185.68,77.93]
[1722092480338,35.76533432,185.69,185.68,77.93]
[1722092482754,23.11233432,185.69,185.68,77.93]
[1722092485417,23.65089529,185.69,185.68,77.93]
[1722092486235,6.1078953,185.69,185.68,94.17]
[1722092486437,22.8125,185.82,185.69,32.7731]
[1722092486735,16.2135,185.82,185.79,12.59]
[1722092486933,16.2135,185.82,185.8,1.07479721]
[1722092487136,16.2135,185.82,185.78,0.34]
[1722092487453,16.2135,185.82,185.79,12.59]
[1722092487629,16.2135,185.82,185.72,21.07479721]
[1722092487956,28.8035,185.82,185.73,45.34]
[1722092488125,12.59,185.8,185.72,12.59]
[1722092488330,18.8237,185.8,185.74,12.59]
[1722092488828,6.2337,185.8,185.72,12.59]
[1722092489035,12.59,185.79,185.72,12.59]
[1722092489248,18.8237,185.8,185.73,12.59]
[1722092489452,18.8237,185.8,185.68,1.07524357]
[1722092489629,6.2337,185.8,185.73,12.59]
[1722092489950,18.8237,185.8,185.73,12.59]
[1722092491929,6.2337,185.8,185.73,12.59]
[1722092492155,18.8237,185.8,185.73,12.59]
[1722092492334,6.2337,185.8,185.74,12.59]
[1722092492658,18.8237,185.8,185.73,12.59]
[1722092492836,18.8237,185.8,185.72,12.93]
[1722092493247,12.59,185.79,185.72,12.93]
[1722092493454,18.8237,185.8,185.72,12.93]
[1722092494265,6.2337,185.8,185.74,12.59]
[1722092494442,6.2337,185.8,185.75,12.59]
[1722092494629,6.2337,185.8,185.76,12.59]
[1722092495345,16.2135,185.82,185.76,12.59]
[1722092495549,16.2135,185.82,185.77,0.34]
[1722092496550,79.125386,185.8,185.77,0.34]
[1722092496757,79.125386,185.8,185.79,12.59]
[1722092496948,79.125386,185.8,185.79,12.93]
[1722092497748,79.125386,185.8,185.79,57.93]
[1722092501146,79.125386,185.8,185.79,77.93]
[1722092505373,79.66362811,185.8,185.79,77.93]
[1722092509560,68.979977,185.8,185.79,77.93]
[1722092510154,67.27432708,185.8,185.79,77.93]
[1722092510662,60.00832708,185.8,185.79,77.93]
[1722092510864,60.00832708,185.8,185.79,65.34]
[1722092511072,60.00832708,185.8,185.79,77.93]
[1722092512655,49.65632708,185.8,185.79,77.93]
[1722092513058,49.65632708,185.8,185.79,65.34]
[1722092513262,49.65632708,185.8,185.79,77.93]
[1722092515556,49.65632708,185.8,185.79,65.34]
[1722092515751,49.65632708,185.8,185.79,77.93]
[1722092519056,49.65632708,185.8,185.79,32.59]
[1722092520460,49.65632708,185.8,185.79,77.93]
[1722092520672,49.65632708,185.8,185.79,32.93]
[1722092521977,49.65632708,185.8,185.79,77.93]
[1722092522458,49.65632708,185.8,185.79,20.0]
[1722092522663,49.65632708,185.8,185.76,12.59]
[1722092522859,49.65632708,185.8,185.7,1.94098222]
[1722092523059,49.65632708,185.8,185.74,12.59]
[1722092523364,12.59,185.77,185.67,1.91541193]
[1722092523569,12.59,185.77,185.65,6.69741908]
[1722092523570,12.59,185.73,185.65,5.62171553]
[1722092523766,28.1031,185.7,185.6,547.49222044]
[1722092524081,28.1031,185.7,185.63,12.59]
[1722092524259,15.5131,185.7,185.63,12.59]
[1722092524460,12.59,185.68,185.56,15.1375]
[1722092524665,12.59,185.68,185.56,16.21469785]
[1722092524877,12.59,185.68,185.61,12.59]
[1722092525262,0.53824211,185.62,185.61,12.59]
[1722092526185,6.2878,185.72,185.61,12.59]
[1722092526362,6.2878,185.72,185.59,6.94289254]
[1722092526363,13.93638923,185.71,185.59,6.94289254]
[1722092526563,12.59,185.69,185.62,12.59]